fUSD/lending_fUSD_20260516
["ID","MTS","AMOUNT","RATE_DAILY","PERIOD"]
[422355832,1778866241000,-150.0,0.00014429,2]
[422355858,1778866241000,-150.0,0.00014498,2]
[422355830,1778866241000,-156.6761228,0.00014419,2]
[422355789,1778866241000,-150.0,0.00014292,2]
[422355815,1778866241000,-150.0,0.00014394,2]
[422355884,1778866241000,-150.0,0.0001457,2]
[422355761,1778866241000,-867.89,0.00014217,2]
[422355759,1778866241000,-867.89,0.00014217,2]
[422355768,1778866241000,-650.69842286,0.0001423,2]
[422355765,1778866241000,-6856.12973605,0.00014228,2]
[422355770,1778866241000,-150.0,0.00014237,2]
[422355771,1778866241000,-150.0,0.00014237,2]
[422355783,1778866241000,-150.0,0.00014265,2]
[422355781,1778866241000,-150.0,0.0001426,2]
[422355774,1778866241000,-150.0,0.00014237,2]
[422355776,1778866241000,-150.0,0.00014237,2]
[422355785,1778866241000,-150.0,0.00014271,2]
[422355777,1778866241000,-27795.73106627,0.0001424,2]
[422355817,1778866241000,-150.0,0.00014396,2]
[422355790,1778866241000,-150.0,0.00014305,2]
[422355787,1778866241000,-150.0,0.00014289,2]
[422355792,1778866241000,-500.0,0.00014319,2]
[422355791,1778866241000,-150.0,0.00014305,2]
[422355805,1778866241000,-150.0,0.00014348,2]
[422355794,1778866241000,-150.0,0.0001432,2]
[422355809,1778866241000,-150.0,0.00014359,2]
[422355807,1778866241000,-150.0,0.00014351,2]
[422355813,1778866241000,-150.0,0.00014376,2]
[422355811,1778866241000,-150.0,0.00014373,2]
[422355796,1778866241000,-150.0,0.0001432,2]
[422355803,1778866241000,-836.71,0.00014342,2]
[422355798,1778866241000,-150.0,0.00014324,2]
[422355801,1778866241000,-150.0,0.00014339,2]
[422355779,1778866241000,-150.0,0.00014254,2]
[422355763,1778866241000,-150.0,0.0001422,2]
[422355890,1778866241000,-500.0,0.00014593,2]
[422355880,1778866241000,-27795.73106627,0.0001457,2]
[422355951,1778866241000,-150.0,0.00014764,2]
[422355962,1778866241000,-908.07964849,0.000148,2]
[422355963,1778866241000,-150.0,0.00014805,2]
[422355968,1778866241000,-150.0,0.00014816,2]
[422355966,1778866241000,-150.0,0.00014812,2]
[422355954,1778866241000,-346.16352923,0.00014775,2]
[422355958,1778866241000,-150.0,0.00014782,2]
[422355971,1778866241000,-150.0,0.0001482,2]
[422355970,1778866241000,-908.07964845,0.00014817,2]
[422355973,1778866241000,-150.0,0.0001482,2]
[422355976,1778866241000,-908.07964845,0.00014833,2]
[422355987,1778866241000,-29964.16918207,0.0001485,2]
[422355992,1778866241000,-908.07964845,0.00014867,2]
[422355956,1778866241000,-150.0,0.00014777,2]
[422355990,1778866241000,-150.0,0.0001485,2]
[422355991,1778866241000,-150.0,0.0001485,2]
[422355986,1778866241000,-500.0,0.00014849,2]
[422355980,1778866241000,-150.0,0.00014848,2]
[422355993,1778866241000,-500.0,0.00014867,2]
[422355984,1778866241000,-603.34873986,0.00014849,2]
[422355995,1778866241000,-5627.41122331,0.0001487,2]
[422355982,1778866241000,-500.0,0.00014849,2]
[422355997,1778866241000,-150.0,0.00014875,2]
[422355999,1778866241000,-200.0,0.0001488,2]
[422356001,1778866241000,-150.0,0.00014882,2]
[422356003,1778866241000,-908.07964845,0.00014883,2]
[422356005,1778866241000,-150.0,0.00014884,2]
[422355877,1778866241000,-150.0,0.00014568,2]
[422355978,1778866241000,-150.0,0.00014847,2]
[422355960,1778866241000,-150.0,0.00014792,2]
[422355989,1778866241000,-908.07964845,0.0001485,2]
[422355947,1778866241000,-150.0,0.00014748,2]
[422355949,1778866241000,-150.0,0.00014759,2]
[422355892,1778866241000,-150.0,0.00014598,2]
[422355896,1778866241000,-150.0,0.00014612,2]
[422355894,1778866241000,-150.0,0.00014603,2]
[422355898,1778866241000,-150.0,0.00014623,2]
[422355900,1778866241000,-150.0,0.00014626,2]
[422355902,1778866241000,-150.0,0.00014638,2]
[422355904,1778866241000,-150.0,0.00014646,2]
[422355908,1778866241000,-150.0,0.00014653,2]
[422355906,1778866241000,-150.0,0.00014653,2]
[422355913,1778866241000,-150.0,0.00014673,2]
[422355917,1778866241000,-150.0,0.00014681,2]
[422355915,1778866241000,-150.0,0.0001468,2]
[422355911,1778866241000,-150.0,0.00014668,2]
[422355888,1778866241000,-150.0,0.00014578,2]
[422355921,1778866241000,-2499.991,0.00014692,2]
[422355919,1778866241000,-836.71,0.00014692,2]
[422355943,1778866241000,-150.0,0.00014742,2]
[422355932,1778866241000,-1620.0,0.00014726,2]
[422355938,1778866241000,-150.0,0.00014737,2]
[422355941,1778866241000,-150.0,0.00014737,2]
[422355930,1778866241000,-150.0,0.00014714,2]
[422355945,1778866241000,-294.21213002,0.00014744,2]
[422355934,1778866241000,-6856.12973605,0.00014732,2]
[422355927,1778866241000,-150.0,0.00014714,2]
[422355936,1778866241000,-27795.73106627,0.00014735,2]
[422355923,1778866241000,-150.0,0.00014707,2]
[422355926,1778866241000,-150.0,0.00014709,2]
[422355940,1778866241000,-150.0,0.00014737,2]
[422356100,1778866242000,-500.0,0.00014999,2]
[422356095,1778866242000,-151.0,0.00014997,2]
[422356087,1778866242000,-204.41834298,0.00014986,2]
[422356085,1778866242000,-150.0,0.00014986,2]
[422356073,1778866242000,-500.0,0.0001497,2]
[422356083,1778866242000,-275.90606938,0.00014986,2]
[422356079,1778866242000,-150.0,0.00014986,2]
[422356091,1778866242000,-650.69842286,0.0001499,2]
[422356077,1778866242000,-689.73790928,0.0001497,2]
[422356075,1778866242000,-500.0,0.0001497,2]
[422356081,1778866242000,-189.91704007,0.00014986,2]
[422356101,1778866242000,-500.0,0.00014999,2]
[422356093,1778866242000,-650.69842286,0.0001499,2]
[422356103,1778866242000,-500.0,0.00014999,2]
[422356109,1778866242000,-867.89,0.00014999,2]
[422356098,1778866242000,-500.0,0.00014998,2]
[422356115,1778866242000,-867.89,0.00014999,2]
[422356118,1778866242000,-867.89,0.00014999,2]
[422356108,1778866242000,-867.89,0.00014999,2]
[422356112,1778866242000,-867.89,0.00014999,2]
[422356114,1778866242000,-867.89,0.00014999,2]
[422356120,1778866242000,-867.89,0.00014999,2]
[422356122,1778866242000,-867.89,0.00014999,2]
[422356135,1778866242000,-500.0,0.00014999,2]
[422356124,1778866242000,-867.89,0.00014999,2]
[422356137,1778866242000,-500.0,0.00014999,2]
[422356127,1778866242000,-867.89,0.00014999,2]
[422356071,1778866242000,-1215.46028509,0.0001497,2]
[422356105,1778866242000,-500.0,0.00014999,2]
[422356069,1778866242000,-500.0,0.0001497,2]
[422356125,1778866242000,-867.89,0.00014999,2]
[422356055,1778866242000,-1000.0,0.0001497,2]
[422356007,1778866242000,-150.0,0.00014895,2]
[422356009,1778866242000,-908.07964845,0.000149,2]
[422356011,1778866242000,-1299.00197408,0.000149,2]
[422356013,1778866242000,-6856.12973605,0.000149,2]
[422356015,1778866242000,-25000.0,0.000149,3]
[422356017,1778866242000,-27795.73106627,0.000149,2]
[422356020,1778866242000,-153.53198692,0.000149,2]
[422356024,1778866242000,-5450.68222904,0.000149,2]
[422356026,1778866242000,-208.6780413,0.000149,2]
[422356022,1778866242000,-3276.69407994,0.000149,2]
[422356028,1778866242000,-14741.88135764,0.000149,2]
[422356030,1778866242000,-150.0,0.00014903,2]
[422356032,1778866242000,-150.0,0.00014903,2]
[422356051,1778866242000,-150.0,0.00014952,2]
[422356034,1778866242000,-150.0,0.00014917,2]
[422356041,1778866242000,-150.0,0.00014931,2]
[422356038,1778866242000,-188.23647324,0.00014925,2]
[422356043,1778866242000,-19139.9683362,0.00014936,2]
[422356044,1778866242000,-2419.2268681,0.00014936,2]
[422356047,1778866242000,-150.0,0.00014941,2]
[422356057,1778866242000,-500.0,0.0001497,2]
[422356059,1778866242000,-1000.0,0.0001497,2]
[422356061,1778866242000,-500.0,0.0001497,2]
[422356063,1778866242000,-1000.0,0.0001497,2]
[422356048,1778866242000,-150.0,0.00014951,2]
[422356065,1778866242000,-500.0,0.0001497,2]
[422356067,1778866242000,-1000.0,0.0001497,2]
[422356053,1778866242000,-150.0,0.00014959,2]
[422356036,1778866242000,-150.0,0.00014918,2]
[422356139,1778866242000,-500.0,0.00014999,2]
[422356089,1778866242000,-287.11416309,0.00014986,2]
[422356133,1778866242000,-500.0,0.00014999,2]
[422356214,1778866242000,-855.15,0.00014999,2]
[422356216,1778866242000,-855.15,0.00014999,2]
[422356204,1778866242000,-424.94758592,0.00014999,2]
[422356218,1778866242000,-855.15,0.00014999,2]
[422356202,1778866242000,-500.0,0.00014999,2]
[422356220,1778866242000,-855.15,0.00014999,2]
[422356208,1778866242000,-855.15,0.00014999,2]
[422356210,1778866242000,-855.15,0.00014999,2]
[422356222,1778866242000,-855.15,0.00014999,2]
[422356206,1778866242000,-855.15,0.00014999,2]
[422356212,1778866242000,-855.15,0.00014999,2]
[422356227,1778866242000,-855.15,0.00014999,2]
[422356228,1778866242000,-855.15,0.00014999,2]
[422356230,1778866242000,-855.15,0.00014999,2]
[422356240,1778866242000,-855.15,0.00014999,2]
[422356248,1778866242000,-500.0,0.00014999,2]
[422356246,1778866242000,-855.25987748,0.00014999,2]
[422356238,1778866242000,-855.15,0.00014999,2]
[422356245,1778866242000,-855.15,0.00014999,2]
[422356236,1778866242000,-855.15,0.00014999,2]
[422356232,1778866242000,-855.15,0.00014999,2]
[422356234,1778866242000,-855.15,0.00014999,2]
[422356242,1778866242000,-855.15,0.00014999,2]
[422356252,1778866242000,-500.0,0.00014999,2]
[422356250,1778866242000,-500.0,0.00014999,2]
[422356254,1778866242000,-500.0,0.00014999,2]
[422356256,1778866242000,-500.0,0.00014999,2]
[422356258,1778866242000,-500.0,0.00014999,2]
[422356141,1778866242000,-500.0,0.00014999,2]
[422356200,1778866242000,-500.0,0.00014999,2]
[422356198,1778866242000,-500.0,0.00014999,2]
[422356224,1778866242000,-855.15,0.00014999,2]
[422356187,1778866242000,-500.0,0.00014999,2]
[422356129,1778866242000,-868.1047041,0.00014999,2]
[422356131,1778866242000,-500.0,0.00014999,2]
[422356185,1778866242000,-500.0,0.00014999,2]
[422356145,1778866242000,-244.36367736,0.00014999,2]
[422356148,1778866242000,-500.0,0.00014999,2]
[422356150,1778866242000,-500.0,0.00014999,2]
[422356153,1778866242000,-500.0,0.00014999,2]
[422356151,1778866242000,-500.0,0.00014999,2]
[422356157,1778866242000,-201.38691855,0.00014999,5]
[422356155,1778866242000,-527.38709912,0.00014999,2]
[422356161,1778866242000,-500.0,0.00014999,2]
[422356167,1778866242000,-500.0,0.00014999,2]
[422356169,1778866242000,-500.0,0.00014999,2]
[422356165,1778866242000,-503.8532288,0.00014999,2]
[422356163,1778866242000,-500.0,0.00014999,2]
[422356143,1778866242000,-500.0,0.00014999,2]
[422356171,1778866242000,-500.0,0.00014999,2]
[422356159,1778866242000,-1090.63123349,0.00014999,5]
[422356196,1778866242000,-500.0,0.00014999,2]
[422356194,1778866242000,-500.0,0.00014999,2]
[422356192,1778866242000,-500.0,0.00014999,2]
[422356181,1778866242000,-500.0,0.00014999,2]
[422356183,1778866242000,-500.0,0.00014999,2]
[422356179,1778866242000,-500.0,0.00014999,2]
[422356177,1778866242000,-500.0,0.00014999,2]
[422356188,1778866242000,-500.0,0.00014999,2]
[422356260,1778866242000,-500.0,0.00014999,2]
[422356175,1778866242000,-500.0,0.00014999,2]
[422356173,1778866242000,-500.0,0.00014999,2]
[422356191,1778866242000,-500.0,0.00014999,2]
[422356297,1778866243000,-500.0,0.00014999,2]
[422356295,1778866243000,-500.0,0.00014999,2]
[422356301,1778866243000,-500.0,0.00014999,2]
[422356299,1778866243000,-500.0,0.00014999,2]
[422356308,1778866243000,-500.0,0.00014999,2]
[422356305,1778866243000,-500.0,0.00014999,2]
[422356310,1778866243000,-500.0,0.00014999,2]
[422356312,1778866243000,-500.0,0.00014999,2]
[422356314,1778866243000,-500.0,0.00014999,2]
[422356293,1778866243000,-500.0,0.00014999,2]
[422356303,1778866243000,-500.0,0.00014999,2]
[422356288,1778866243000,-500.0,0.00014999,2]
[422356277,1778866243000,-500.0,0.00014999,2]
[422356290,1778866243000,-500.0,0.00014999,2]
[422356286,1778866243000,-500.0,0.00014999,2]
[422356281,1778866243000,-500.0,0.00014999,2]
[422356279,1778866243000,-500.0,0.00014999,2]
[422356275,1778866243000,-500.0,0.00014999,2]
[422356273,1778866243000,-500.0,0.00014999,2]
[422356270,1778866243000,-500.0,0.00014999,2]
[422356264,1778866243000,-500.0,0.00014999,2]
[422356262,1778866243000,-500.0,0.00014999,2]
[422356268,1778866243000,-500.0,0.00014999,2]
[422356266,1778866243000,-500.0,0.00014999,2]
[422356316,1778866243000,-500.0,0.00014999,2]
[422356283,1778866243000,-500.0,0.00014999,2]
[422356318,1778866243000,-500.0,0.00014999,2]
[422356359,1778866243000,-300.0,0.00014999,2]
[422356328,1778866243000,-500.0,0.00014999,2]
[422356392,1778866243000,-166.66,0.00014247,2]
[422356393,1778866243000,-382.53686366,0.00015,2]
[422356320,1778866243000,-500.0,0.00014999,2]
[422356386,1778866243000,-1310.66,0.00015,2]
[422356377,1778866243000,-166.66,0.00013699,2]
[422356379,1778866243000,-166.66,0.00013836,2]
[422356381,1778866243000,-166.66,0.00013973,2]
[422356361,1778866243000,-4873058.22530018,0.00015,2]
[422356347,1778866243000,-500.0,0.00014999,2]
[422356349,1778866243000,-500.0,0.00014999,2]
[422356345,1778866243000,-500.0,0.00014999,2]
[422356344,1778866243000,-500.0,0.00014999,2]
[422356358,1778866243000,-666.0,0.00014999,2]
[422356383,1778866243000,-166.66,0.0001411,2]
[422356355,1778866243000,-300.0,0.00014999,2]
[422356323,1778866243000,-500.0,0.00014999,2]
[422356330,1778866243000,-500.0,0.00014999,2]
[422356334,1778866243000,-500.0,0.00014999,2]
[422356336,1778866243000,-531.58948672,0.00014999,2]
[422356338,1778866243000,-500.0,0.00014999,2]
[422356332,1778866243000,-500.0,0.00014999,2]
[422356325,1778866243000,-500.0,0.00014999,2]
[422356352,1778866243000,-300.0,0.00014999,2]
[422356353,1778866243000,-300.0,0.00014999,2]
[422356350,1778866243000,-500.0,0.00014999,2]
[422356340,1778866243000,-500.0,0.00014999,2]
[422356342,1778866243000,-500.0,0.00014999,2]
[422356461,1778866244000,-891602.05925598,0.00015,2]
[422356457,1778866244000,-166.66,0.00014384,2]
[422356455,1778866244000,-2482.38304764,0.0001403,2]
[422356459,1778866244000,-308799.29523013,0.00015,2]
[422356462,1778866244000,-76540.08517839,0.00015,2]
[422356588,1778866246000,-2482.38304764,0.00014248,2]
[422356589,1778866246000,-6117.77791599,0.00015,2]
[422356639,1778867431000,-22691.01086511,0.00013288,2]
[422356638,1778867431000,-224.20982696,0.00013275,2]
[422356643,1778867431000,-4311.2297,0.00013378,2]
[422356636,1778867431000,-1374.46,0.00013018,2]
[422356634,1778867431000,-1200.0,0.00012709,2]
[422356637,1778867431000,-1775.79017304,0.00013275,2]
[422356633,1778867431000,-300.0,0.00012709,2]
[422356632,1778867431000,-300.0,0.00012709,2]
[422356631,1778867431000,-929.1,0.00012705,2]
[422356629,1778867431000,-1118.39856915,0.00012701,2]
[422356628,1778867431000,-81.60143085,0.00012683,2]
[422356627,1778867431000,-175.67856915,0.00012683,2]
[422356626,1778867431000,-238.41,0.00012673,2]
[422356625,1778867431000,-327.461221,0.00012609,2]
[422356630,1778867431000,-256.06143085,0.00012701,2]
[422356635,1778867431000,-10000.0,0.0001271,2]
[422356641,1778867431000,-294.21213002,0.00013298,2]
[422356642,1778867431000,-1374.46,0.00013336,2]
[422356640,1778867431000,-150.0,0.00013297,2]
[422356659,1778867431000,-150.0,0.00013488,2]
[422356654,1778867431000,-150.0,0.00013424,2]
[422356652,1778867431000,-291.85352659,0.00013424,2]
[422356653,1778867431000,-150.0,0.00013424,2]
[422356650,1778867431000,-150.0,0.00013424,2]
[422356648,1778867431000,-150.0,0.00013424,2]
[422356661,1778867431000,-150.0,0.00013488,2]
[422356647,1778867431000,-214.997284,0.00013398,2]
[422356646,1778867431000,-208.38824723,0.00013398,2]
[422356657,1778867431000,-240.00749327,0.00013424,2]
[422356656,1778867431000,-150.0,0.00013424,2]
[422356655,1778867431000,-150.0,0.00013424,2]
[422356645,1778867431000,-1607.19455932,0.00013378,2]
[422356663,1778867431000,-150.0,0.00013488,2]
[422356644,1778867431000,-392.80544068,0.00013378,2]
[422356679,1778867432000,-150.0,0.00013523,2]
[422356691,1778867432000,-336.41001518,0.00013578,2]
[422356680,1778867432000,-150.0,0.00013524,2]
[422356665,1778867432000,-150.0,0.00013488,2]
[422356678,1778867432000,-336.41001518,0.00013518,2]
[422356667,1778867432000,-150.0,0.00013488,2]
[422356672,1778867432000,-336.41001518,0.00013488,2]
[422356676,1778867432000,-336.41001518,0.00013503,2]
[422356674,1778867432000,-150.0,0.00013488,2]
[422356670,1778867432000,-150.0,0.00013488,2]
[422356669,1778867432000,-150.0,0.00013488,2]
[422356685,1778867432000,-336.41001518,0.00013548,2]
[422356677,1778867432000,-150.0,0.00013517,2]
[422356687,1778867432000,-150.0,0.00013561,2]
[422356682,1778867432000,-336.41001518,0.00013533,2]
[422356690,1778867432000,-150.0,0.00013576,2]
[422356693,1778867432000,-150.0,0.00013588,2]
[422356699,1778867432000,-118.31603467,0.00013609,2]
[422356694,1778867432000,-187.567114,0.00013592,2]
[422356697,1778867432000,-150.0,0.00013597,2]
[422356698,1778867432000,-150.0,0.00013605,2]
[422356696,1778867432000,-150.0,0.00013595,2]
[422356695,1778867432000,-336.41001518,0.00013594,2]
[422356684,1778867432000,-150.0,0.00013546,2]
[422356688,1778867432000,-336.41001518,0.00013563,2]
[422356681,1778867432000,-220.62,0.00013527,2]
[422356689,1778867432000,-150.0,0.00013576,2]
[422356686,1778867432000,-150.0,0.00013559,2]
[422356683,1778867432000,-150.0,0.00013536,2]
[422356692,1778867432000,-150.0,0.00013584,2]
[422356711,1778867437000,-336.41001518,0.00013654,2]
[422356716,1778867437000,-150.0,0.0001367,2]
[422356713,1778867437000,-150.0,0.00013664,2]
[422356724,1778867437000,-500.0,0.00013698,2]
[422356725,1778867437000,-500.0,0.00013698,2]
[422356710,1778867437000,-1374.46,0.00013653,2]
[422356703,1778867437000,-218.09398051,0.00013609,2]
[422356708,1778867437000,-150.0,0.00013635,2]
[422356707,1778867437000,-150.0,0.00013634,2]
[422356709,1778867437000,-336.41001518,0.00013639,2]
[422356705,1778867437000,-150.0,0.0001363,2]
[422356712,1778867437000,-150.0,0.00013664,2]
[422356722,1778867437000,-478.0,0.00013698,2]
[422356704,1778867437000,-336.41001518,0.00013624,2]
[422356706,1778867437000,-150.0,0.00013633,2]
[422356721,1778867437000,-500.0,0.00013698,2]
[422356714,1778867437000,-150.0,0.00013666,2]
[422356715,1778867437000,-336.41001518,0.00013669,2]
[422356720,1778867437000,-150.0,0.00013693,2]
[422356736,1778867437000,-888.73,0.00013698,2]
[422356732,1778867437000,-500.0,0.00013698,2]
[422356735,1778867437000,-888.73,0.00013698,2]
[422356731,1778867437000,-500.0,0.00013698,2]
[422356733,1778867437000,-500.0,0.00013698,2]
[422356730,1778867437000,-500.0,0.00013698,2]
[422356728,1778867437000,-500.0,0.00013698,2]
[422356734,1778867437000,-500.0,0.00013698,2]
[422356726,1778867437000,-500.0,0.00013698,2]
[422356729,1778867437000,-500.0,0.00013698,2]
[422356727,1778867437000,-500.0,0.00013698,2]
[422356723,1778867437000,-500.0,0.00013698,2]
[422356719,1778867437000,-150.0,0.00013687,2]
[422356718,1778867437000,-336.41001518,0.00013684,2]
[422356737,1778867437000,-888.73,0.00013698,2]
[422356717,1778867437000,-150.0,0.00013681,2]
[422356789,1778867438000,-150.0,0.00013773,2]
[422356791,1778867438000,-336.41001518,0.00013775,2]
[422356783,1778867438000,-150.0,0.00013752,2]
[422356784,1778867438000,-150.0,0.00013752,2]
[422356821,1778867438000,-150.0,0.00013844,2]
[422356774,1778867438000,-150.0,0.00013702,2]
[422356775,1778867438000,-150.0,0.00013707,2]
[422356773,1778867438000,-336.41001518,0.000137,2]
[422356771,1778867438000,-200.0,0.00013699,2]
[422356795,1778867438000,-150.0,0.0001378,2]
[422356782,1778867438000,-336.41001518,0.00013745,2]
[422356797,1778867438000,-150.0,0.00013782,2]
[422356813,1778867438000,-166.66,0.00013836,2]
[422356799,1778867438000,-150.0,0.00013787,2]
[422356819,1778867438000,-150.0,0.0001384,2]
[422356805,1778867438000,-336.41001518,0.00013806,2]
[422356803,1778867438000,-336.41001518,0.0001379,2]
[422356815,1778867438000,-336.41001518,0.00013836,2]
[422356801,1778867438000,-150.0,0.00013787,2]
[422356776,1778867438000,-336.41001518,0.00013715,2]
[422356817,1778867438000,-150.0,0.0001384,2]
[422356808,1778867438000,-150.0,0.00013817,2]
[422356806,1778867438000,-150.0,0.00013809,2]
[422356807,1778867438000,-150.0,0.00013811,2]
[422356810,1778867438000,-336.41001518,0.00013821,2]
[422356793,1778867438000,-150.0,0.00013778,2]
[422356769,1778867438000,-166.66,0.00013699,2]
[422356765,1778867438000,-782.09,0.00013699,2]
[422356779,1778867438000,-336.41001518,0.0001373,2]
[422356739,1778867438000,-500.0,0.00013698,2]
[422356741,1778867438000,-500.0,0.00013698,2]
[422356743,1778867438000,-500.0,0.00013698,2]
[422356740,1778867438000,-608.0,0.00013698,2]
[422356750,1778867438000,-549.0418679,0.00013698,2]
[422356738,1778867438000,-888.73,0.00013698,2]
[422356745,1778867438000,-855.15,0.00013698,2]
[422356744,1778867438000,-500.0,0.00013698,2]
[422356742,1778867438000,-500.0,0.00013698,2]
[422356747,1778867438000,-855.15,0.00013698,2]
[422356746,1778867438000,-855.15,0.00013698,2]
[422356748,1778867438000,-855.15,0.00013698,2]
[422356778,1778867438000,-150.0,0.00013729,2]
[422356755,1778867438000,-500.0,0.00013698,2]
[422356762,1778867438000,-500.0,0.00013698,2]
[422356756,1778867438000,-500.0,0.00013698,2]
[422356757,1778867438000,-500.0,0.00013698,2]
[422356763,1778867438000,-500.0,0.00013699,2]
[422356761,1778867438000,-500.0,0.00013698,2]
[422356759,1778867438000,-500.0,0.00013698,2]
[422356760,1778867438000,-500.0,0.00013698,2]
[422356758,1778867438000,-544.8115812,0.00013698,2]
[422356777,1778867438000,-150.0,0.00013723,2]
[422356767,1778867438000,-2500.0,0.00013699,2]
[422356780,1778867438000,-150.0,0.00013737,2]
[422356781,1778867438000,-150.0,0.00013744,2]
[422356753,1778867438000,-500.0,0.00013698,2]
[422356811,1778867438000,-150.0,0.00013826,2]
[422356786,1778867438000,-336.41001518,0.0001376,2]
[422356823,1778867438000,-150.0,0.00013853,2]
[422356853,1778867438000,-336.41001518,0.00013942,2]
[422356854,1778867438000,-420.0,0.00013942,2]
[422356855,1778867438000,-150.0,0.00013952,2]
[422356856,1778867438000,-336.41001518,0.00013957,2]
[422356859,1778867438000,-1374.46,0.00013971,2]
[422356863,1778867438000,-166.66,0.00013973,2]
[422356858,1778867438000,-150.0,0.00013963,2]
[422356864,1778867438000,-420.0,0.0001398,2]
[422356860,1778867438000,-150.0,0.00013971,2]
[422356865,1778867438000,-150.0,0.00013987,2]
[422356861,1778867438000,-336.41001518,0.00013972,2]
[422356866,1778867438000,-150.0,0.00013987,2]
[422356850,1778867438000,-166.19,0.00013927,2]
[422356867,1778867438000,-150.0,0.00013987,2]
[422356870,1778867438000,-2730.1767011,0.0001399,2]
[422356878,1778867438000,-150.0,0.00014023,2]
[422356869,1778867438000,-500.0,0.00013989,2]
[422356879,1778867438000,-336.41001518,0.00014033,2]
[422356871,1778867438000,-150.0,0.00013999,2]
[422356874,1778867438000,-150.0,0.00014017,2]
[422356872,1778867438000,-250.0,0.00014,2]
[422356873,1778867438000,-336.41001518,0.00014002,2]
[422356877,1778867438000,-150.0,0.00014019,2]
[422356876,1778867438000,-336.41001518,0.00014017,2]
[422356875,1778867438000,-150.0,0.00014017,2]
[422356822,1778867438000,-336.41001518,0.00013851,2]
[422356868,1778867438000,-336.41001518,0.00013987,2]
[422356848,1778867438000,-150.0,0.00013926,2]
[422356862,1778867438000,-500.0,0.00013973,2]
[422356849,1778867438000,-336.41001518,0.00013927,2]
[422356851,1778867438000,-150.0,0.00013928,2]
[422356824,1778867438000,-336.41001518,0.00013866,2]
[422356825,1778867438000,-150.0,0.0001387,2]
[422356829,1778867438000,-150.0,0.00013887,2]
[422356830,1778867438000,-150.0,0.0001389,2]
[422356827,1778867438000,-150.0,0.0001388,2]
[422356832,1778867438000,-150.0,0.00013899,2]
[422356828,1778867438000,-336.41001518,0.00013881,2]
[422356826,1778867438000,-150.0,0.00013874,2]
[422356831,1778867438000,-336.41001518,0.00013896,2]
[422356834,1778867438000,-206.01414035,0.00013901,2]
[422356837,1778867438000,-300.0,0.00013905,2]
[422356840,1778867438000,-2500.0,0.00013905,2]
[422356833,1778867438000,-150.0,0.00013901,2]
[422356838,1778867438000,-300.0,0.00013905,2]
[422356836,1778867438000,-300.0,0.00013905,2]
[422356857,1778867438000,-150.0,0.00013958,2]
[422356847,1778867438000,-150.0,0.00013923,2]
[422356846,1778867438000,-150.0,0.00013916,2]
[422356845,1778867438000,-336.41001518,0.00013912,2]
[422356843,1778867438000,-2500.0,0.00013905,2]
[422356852,1778867438000,-150.0,0.00013928,2]
[422356842,1778867438000,-2500.0,0.00013905,2]
[422356841,1778867438000,-2500.0,0.00013905,2]